[Event "Swiss Championship 2024"]
[Site "Flims"]
[Date "2024.07.13"]
[Round "1.1"]
[White "Peng, Li Min"]
[Black "Bogner, Sebastian"]
[Result "1/2-1/2"]
[ECO "A20"]
[WhiteElo "2562"]
[BlackElo "2547"]
[Annotator "ChessBase"]
[PlyCount "83"]
[EventDate "2024.07.10"]
[EventType "tourn"]
[EventCountry "SUI"]
[SourceTitle "playchess.com"]
[Source "ChessBase"]
[SourceQuality "1"]
[TimeControl "40/5400+30:1800+30"]

1. c4 {[%emt 0:00:11]} e5 {[%emt 0:00:09]} 2. Nf3 {[%emt 0:00:10]} Nc6 {[%emt 0:00:08]} 3. g3 {[%emt 0:00:06]} e4 {[%emt 0:00:42]} 4. Nh4 {[%emt 0:00:08]} Nf6 {[%emt 0:00:38]} 5. Bg2 {[%emt 0:00:07]} g5 {[%emt 0:02:10]} 6. Nf5 {[%emt 0:00:40]} d5 {[%emt 0:00:21]} 7. cxd5 {[%emt 0:00:07]} Qxd5 {[%emt 0:00:09]} 8. Ne3 {[%emt 0:00:06]} Qe5 {[%emt 0:00:10]} 9. Nc3 {[%emt 0:00:05]} Be6 {[%emt 0:05:06]} 10. b3 {[%emt 0:00:05]} O-O-O {[%emt 0:07:05]} 11. Bb2 {[%emt 0:00:06]} Be7 {[%emt 0:07:39]} 12. Qb1 {[%emt 0:00:21]} Bc5 {[%emt 0:13:13]} 13. Nxe4 {[%emt 0:12:04]} Bd4 {[%emt 0:00:07]} 14. Bxd4 {[%emt 0:00:13]} Nxd4 {[%emt 0:00:28]} 15. Nxf6 {[%emt 0:00:33]} Qxf6 {[%emt 0:00:08]} 16. Qd1 {[%emt 0:00:15]} Rhe8 {[%emt 0:08:20]} 17. O-O {[%emt 0:09:54]} h5 {[%emt 0:03:11]} 18. Rc1 {[%emt 0:18:32]} h4 {[%emt 0:01:43]} 19. f4 {[%emt 0:02:14]} hxg3 {[%emt 0:10:39]} 20. hxg3 {[%emt 0:03:10]} gxf4 {[%emt 0:00:12]} 21. Rxf4 {[%emt 0:00:04]} Qg5 {[%emt 0:00:26]} 22. Qe1 {[%emt 0:02:14]} Rg8 {[%emt 0:04:12]} 23. Nf1 {[%emt 0:50:35]} Bg4 {[%emt 0:04:22]} 24. Kf2 {[%emt 0:00:00]} Ne6 {[%emt 0:07:21]} 25. Re4 {[%emt 0:00:00]} Qf6+ {[%emt 0:02:49]} 26. Kg1 {[%emt 0:00:00]} Nd4 {[%emt 0:01:46]} 27. Qf2 {[%emt 0:00:00]} Qb6 {[%emt 0:02:52]} 28. Re1 {[%emt 0:00:00]} f5 {[%emt 0:03:01]} 29. Re5 {[%emt 0:00:00]} f4 {[%emt 0:05:01]} 30. gxf4 {[%emt 0:00:00]} Bf3 {[%emt 0:01:08]} 31. Ne3 {[%emt 0:00:00]} Bxg2 {[%emt 0:02:35]} 32. Nxg2 {[%emt 0:00:00]} Qh6 {[%emt 0:02:08]} 33. Rg5 {[%emt 0:00:00]} Rxg5 {[%emt 0:01:19]} 34. fxg5 {[%emt 0:00:00]} Qxg5 {[%emt 0:00:07]} 35. e3 {[%emt 0:00:00]} Nf5 {[%emt 0:00:48]} 36. Rc1 {[%emt 0:00:00]} Ng3 {[%emt 0:02:57]} 37. Qf3 {[%emt 0:00:00]} Rxd2 {[%emt 0:01:47]} 38. Rc4 {[%emt 0:00:00]} Ne2+ {[%emt 0:01:09]} 39. Kf1 {[%emt 0:00:00]} Ng3+ {[%emt 0:00:58]} 40. Kg1 {[%emt 0:00:00]} Ne2+ {[%emt 0:00:45]} 41. Kf1 {[%emt 0:17:23]} Ng3+ {[%emt 0:05:11]} 42. Kg1 {[%emt 0:22:07]} 1/2-1/2

[Event "Swiss Championship 2024"]
[Site "Flims"]
[Date "2024.07.13"]
[Round "1.2"]
[White "Stijve, Theo"]
[Black "Fischer, Daniel"]
[Result "1/2-1/2"]
[ECO "B33"]
[WhiteElo "2328"]
[BlackElo "2372"]
[Annotator "ChessBase"]
[PlyCount "68"]
[EventDate "2024.07.10"]
[EventType "tourn"]
[EventCountry "SUI"]
[SourceTitle "playchess.com"]
[Source "ChessBase"]
[SourceQuality "1"]
[TimeControl "40/5400+30:1800+30"]

1. e4 {[%emt 0:00:03]} c5 {[%emt 0:00:07]} 2. Nf3 {[%emt 0:00:06]} Nc6 {[%emt 0:00:05]} 3. d4 {[%emt 0:01:10]} cxd4 {[%emt 0:00:07]} 4. Nxd4 {[%emt 0:00:06]} Nf6 {[%emt 0:00:05]} 5. Nc3 {[%emt 0:00:11]} e5 {[%emt 0:00:16]} 6. Nde2 {[%emt 0:00:50]} Bc5 {[%emt 0:05:39]} 7. Ng3 {[%emt 0:01:30]} O-O {[%emt 0:02:05]} 8. Bc4 {[%emt 0:10:33]} d6 {[%emt 0:14:32]} 9. Bg5 {[%emt 0:19:47]} h6 {[%emt 0:13:40]} 10. Bxf6 {[%emt 0:00:50]} Qxf6 {[%emt 0:00:05]} 11. O-O {[%emt 0:00:32]} Be6 {[%emt 0:02:19]} 12. Nd5 {[%emt 0:02:43]} Qg5 {[%emt 0:03:20]} 13. c3 {[%emt 0:03:02]} a6 {[%emt 0:01:30]} 14. a4 {[%emt 0:02:02]} g6 {[%emt 0:09:02]} 15. b4 {[%emt 0:18:26]} Ba7 {[%emt 0:00:05]} 16. Ba2 {[%emt 0:07:00]} Rac8 {[%emt 0:19:46]} 17. Qd3 {[%emt 0:06:35]} Ne7 {[%emt 0:03:56]} 18. Ne2 {[%emt 0:03:57]} Nxd5 {[%emt 0:07:03]} 19. Bxd5 {[%emt 0:00:19]} Qe7 {[%emt 0:00:46]} 20. Rad1 {[%emt 0:04:09]} Bg4 {[%emt 0:03:12]} 21. c4 {[%emt 0:02:58]} Bxe2 {[%emt 0:01:13]} 22. Qxe2 {[%emt 0:00:12]} Kg7 {[%emt 0:01:47]} 23. Kh1 {[%emt 0:03:26]} f5 {[%emt 0:02:50]} 24. exf5 {[%emt 0:03:11]} Rxf5 {[%emt 0:00:18]} 25. f4 {[%emt 0:00:52]} Rcf8 {[%emt 0:02:37]} 26. fxe5 {[%emt 0:00:45]} Rxe5 {[%emt 0:01:08]} 27. Qb2 {[%emt 0:01:47]} Rf6 {[%emt 0:00:54]} 28. h3 {[%emt 0:01:21]} Be3 {[%emt 0:00:44]} 29. Rxf6 {[%emt 0:01:34]} Qxf6 {[%emt 0:00:06]} 30. Bxb7 {[%emt 0:00:49]} Bb6 {[%emt 0:01:32]} 31. Qd2 {[%emt 0:00:47]} a5 {[%emt 0:00:30]} 32. b5 {[%emt 0:01:11]} Qh4 {[%emt 0:01:44]} 33. Bd5 {[%emt 0:01:24]} Re3 {[%emt 0:01:08]} 34. Qb2+ {[%emt 0:01:22]} Kh7 {[%emt 0:00:02]} 1/2-1/2

[Event "Swiss Championship 2024"]
[Site "Flims"]
[Date "2024.07.13"]
[Round "1.3"]
[White "Wyss, Jonas"]
[Black "Baenziger, Fabian"]
[Result "1/2-1/2"]
[ECO "C11"]
[WhiteElo "2291"]
[BlackElo "2410"]
[Annotator "ChessBase"]
[PlyCount "118"]
[EventDate "2024.07.10"]
[EventType "tourn"]
[EventCountry "SUI"]
[SourceTitle "playchess.com"]
[Source "ChessBase"]
[SourceQuality "1"]
[TimeControl "40/5400+30:1800+30"]

1. e4 {[%emt 0:00:04]} e6 {[%emt 0:00:11]} 2. d4 {[%emt 0:00:19]} d5 {[%emt 0:00:05]} 3. Nc3 {[%emt 0:00:20]} Nf6 {[%emt 0:00:41]} 4. e5 {[%emt 0:00:22]} Nfd7 {[%emt 0:00:04]} 5. f4 {[%emt 0:00:18]} c5 {[%emt 0:00:23]} 6. Nf3 {[%emt 0:00:17]} Nc6 {[%emt 0:00:15]} 7. Be3 {[%emt 0:00:53]} a6 {[%emt 0:00:20]} 8. Qd2 {[%emt 0:10:52]} b5 {[%emt 0:01:15]} 9. dxc5 {[%emt 0:01:03]} Bxc5 {[%emt 0:00:32]} 10. Bd3 {[%emt 0:01:27]} Qb6 {[%emt 0:01:21]} 11. Bf2 {[%emt 0:03:54]} Bb7 {[%emt 0:02:28]} 12. O-O {[%emt 0:10:32]} h6 {[%emt 0:03:28]} 13. Rae1 {[%emt 0:08:37]} Bxf2+ {[%emt 0:03:31]} 14. Qxf2 {[%emt 0:03:23]} Qxf2+ {[%emt 0:00:52]} 15. Kxf2 {[%emt 0:03:03]} Ke7 {[%emt 0:10:10]} 16. Ne2 {[%emt 0:08:05]} g5 {[%emt 0:07:14]} 17. g3 {[%emt 0:02:33]} Rhg8 {[%emt 0:04:06]} 18. Rg1 {[%emt 0:01:49]} f6 {[%emt 0:14:48]} 19. exf6+ {[%emt 0:07:43]} Kxf6 {[%emt 0:02:40]} 20. Ned4 {[%emt 0:01:13]} Nxd4 {[%emt 0:00:53]} 21. Nxd4 {[%emt 0:00:10]} Nc5 {[%emt 0:07:15]} 22. b4 {[%emt 0:15:38]} Ne4+ {[%emt 0:00:05]} 23. Bxe4 {[%emt 0:00:48]} dxe4 {[%emt 0:00:14]} 24. Nb3 {[%emt 0:07:57]} Bd5 {[%emt 0:03:55]} 25. Nc5 {[%emt 0:00:23]} Kf5 {[%emt 0:07:43]} 26. fxg5 {[%emt 0:01:15]} hxg5 {[%emt 0:02:19]} 27. Ke3 {[%emt 0:00:49]} a5 {[%emt 0:00:46]} 28. a3 {[%emt 0:02:46]} axb4 {[%emt 0:01:22]} 29. axb4 {[%emt 0:00:01]} Ra3+ {[%emt 0:01:10]} 30. Kd4 {[%emt 0:06:57]} Rd8 {[%emt 0:06:49]} 31. Ref1+ {[%emt 0:00:12]} Rf3 {[%emt 0:05:46]} 32. Rxf3+ {[%emt 0:00:05]} exf3 {[%emt 0:00:03]} 33. g4+ {[%emt 0:00:07]} Kg6 {[%emt 0:00:37]} 34. Nd3 {[%emt 0:02:35]} Rh8 {[%emt 0:01:35]} 35. Rh1 {[%emt 0:00:40]} Kf6 {[%emt 0:01:32]} 36. Ke3 {[%emt 0:00:38]} Rc8 {[%emt 0:02:38]} 37. Rc1 {[%emt 0:00:26]} Rc4 {[%emt 0:00:31]} 38. h3 {[%emt 0:00:22]} e5 {[%emt 0:00:45]} 39. c3 {[%emt 0:00:29]} Ke7 {[%emt 0:06:28]} 40. Nf2 {[%emt 0:00:51]} Kd6 {[%emt 0:02:08]} 41. Nd3 {[%emt 0:11:05]} Bc6 {[%emt 0:05:14]} 42. Nc5 {[%emt 0:02:54]} Bd5 {[%emt 0:02:09]} 43. Nd3 {[%emt 0:00:58]} Re4+ {[%emt 0:01:35]} 44. Kxf3 {[%emt 0:03:02]} Rxb4+ {[%emt 0:00:10]} 45. Kf2 {[%emt 0:01:55]} Rb3 {[%emt 0:00:22]} 46. Ke3 {[%emt 0:01:41]} Bc4 {[%emt 0:02:11]} 47. Nb4 {[%emt 0:03:56]} Rb2 {[%emt 0:00:21]} 48. Rd1+ {[%emt 0:02:23]} Ke6 {[%emt 0:00:24]} 49. Nd3 {[%emt 0:01:35]} Bxd3 {[%emt 0:03:40]} 50. Rxd3 {[%emt 0:00:26]} Rh2 {[%emt 0:00:20]} 51. Ke4 {[%emt 0:00:06]} Rh1 {[%emt 0:00:03]} 52. Re3 {[%emt 0:02:04]} Rf1 {[%emt 0:02:08]} 53. Re2 {[%emt 0:00:32]} Rf4+ {[%emt 0:01:36]} 54. Ke3 {[%emt 0:00:07]} Kd5 {[%emt 0:02:46]} 55. Rb2 {[%emt 0:00:28]} Kc5 {[%emt 0:00:46]} 56. Rb1 {[%emt 0:00:53]} Ra4 {[%emt 0:01:58]} 57. Kd3 {[%emt 0:00:31]} Rf4 {[%emt 0:02:30]} 58. Ke3 {[%emt 0:00:07]} Ra4 {[%emt 0:00:35]} 59. Kd3 {[%emt 0:00:08]} Rf4 {[%emt 0:12:14]} 1/2-1/2

[Event "Swiss Championship 2024"]
[Site "Flims"]
[Date "2024.07.13"]
[Round "1.4"]
[White "Kurmann, Oliver"]
[Black "Georgiadis, Nico"]
[Result "0-1"]
[ECO "B28"]
[WhiteElo "2428"]
[BlackElo "2512"]
[Annotator "ChessBase"]
[PlyCount "122"]
[EventDate "2024.07.10"]
[EventType "tourn"]
[EventCountry "SUI"]
[SourceTitle "playchess.com"]
[Source "ChessBase"]
[SourceQuality "1"]
[TimeControl "40/5400+30:1800+30"]

1. e4 {[%emt 0:00:03]} c5 {[%emt 0:00:08]} 2. Nf3 {[%emt 0:00:07]} a6 {[%emt 0:00:07]} 3. Nc3 {[%emt 0:03:47]} b5 {[%emt 0:00:16]} 4. d4 {[%emt 0:00:13]} cxd4 {[%emt 0:00:12]} 5. Nxd4 {[%emt 0:00:07]} Bb7 {[%emt 0:00:41]} 6. Bd3 {[%emt 0:01:00]} g6 {[%emt 0:01:23]} 7. O-O {[%emt 0:09:33]} Bg7 {[%emt 0:00:05]} 8. Be3 {[%emt 0:00:07]} Nc6 {[%emt 0:00:30]} 9. Nb3 {[%emt 0:06:39]} Nf6 {[%emt 0:09:57]} 10. Nc5 {[%emt 0:08:03]} Bc8 {[%emt 0:12:45]} 11. a4 {[%emt 0:02:05]} b4 {[%emt 0:00:29]} 12. Nd5 {[%emt 0:00:40]} d6 {[%emt 0:13:02]} 13. Nb3 {[%emt 0:01:06]} Nxd5 {[%emt 0:07:35]} 14. exd5 {[%emt 0:00:01]} Ne5 {[%emt 0:00:12]} 15. Be2 {[%emt 0:02:09]} Qc7 {[%emt 0:06:47]} 16. Bd4 {[%emt 0:12:23]} O-O {[%emt 0:00:18]} 17. c4 {[%emt 0:05:39]} bxc3 {[%emt 0:05:13]} 18. Bxc3 {[%emt 0:00:21]} Qb6 {[%emt 0:04:07]} 19. Na5 {[%emt 0:10:54]} Bd7 {[%emt 0:09:01]} 20. Qb3 {[%emt 0:21:18]} Qxb3 {[%emt 0:06:13]} 21. Nxb3 {[%emt 0:00:02]} Rfc8 {[%emt 0:00:32]} 22. Rfc1 {[%emt 0:07:40]} Bf5 {[%emt 0:06:15]} 23. Nd4 {[%emt 0:06:16]} Be4 {[%emt 0:08:55]} 24. f4 {[%emt 0:01:25]} Nd3 {[%emt 0:01:35]} 25. Bxd3 {[%emt 0:00:20]} Bxd4+ {[%emt 0:02:30]} 26. Bxd4 {[%emt 0:00:01]} Bxd3 {[%emt 0:00:08]} 27. Rc6 {[%emt 0:01:23]} Be4 {[%emt 0:00:28]} 28. Rac1 {[%emt 0:00:14]} Re8 {[%emt 0:00:38]} 29. Rc7 {[%emt 0:00:43]} Bxd5 {[%emt 0:00:06]} 30. Kf2 {[%emt 0:00:37]} Rab8 {[%emt 0:00:37]} 31. a5 {[%emt 0:00:26]} f5 {[%emt 0:01:48]} 32. Bb6 {[%emt 0:00:09]} Rb7 {[%emt 0:01:23]} 33. Rxb7 {[%emt 0:00:53]} Bxb7 {[%emt 0:00:05]} 34. Rc7 {[%emt 0:00:31]} Be4 {[%emt 0:01:02]} 35. Rd7 {[%emt 0:00:24]} Kf7 {[%emt 0:00:35]} 36. Rd8 {[%emt 0:00:06]} Rxd8 {[%emt 0:00:06]} 37. Bxd8 {[%emt 0:00:01]} g5 {[%emt 0:01:41]} 38. g3 {[%emt 0:00:21]} gxf4 {[%emt 0:01:26]} 39. gxf4 {[%emt 0:00:01]} Ke6 {[%emt 0:00:33]} 40. Ke3 {[%emt 0:00:30]} Kd7 {[%emt 0:00:10]} 41. Bb6 {[%emt 0:30:02]} e5 {[%emt 0:30:18]} 42. Ba7 {[%emt 0:00:00]} Kc7 {[%emt 0:00:00]} 43. Bb6+ {[%emt 0:00:00]} Kc6 {[%emt 0:00:00]} 44. Bd8 {[%emt 0:00:33]} exf4+ {[%emt 0:00:00]} 45. Kxf4 {[%emt 0:00:01]} Kb5 {[%emt 0:00:00]} 46. Bc7 {[%emt 0:00:33]} Kc5 {[%emt 0:00:00]} 47. Bb8 {[%emt 0:02:48]} d5 {[%emt 0:00:00]} 48. Ba7+ {[%emt 0:00:28]} Kb4 {[%emt 0:00:00]} 49. Bb6 {[%emt 0:00:12]} Kb3 {[%emt 0:00:00]} 50. Bd4 {[%emt 0:00:14]} Kc4 {[%emt 0:00:00]} 51. Ba7 {[%emt 0:02:18]} d4 {[%emt 0:00:00]} 52. Bb6 {[%emt 0:00:22]} d3 {[%emt 0:00:31]} 53. Ke3 {[%emt 0:00:02]} Kb3 {[%emt 0:00:53]} 54. Kd2 {[%emt 0:00:37]} Kxb2 {[%emt 0:00:05]} 55. Be3 {[%emt 0:00:41]} Kb3 {[%emt 0:00:05]} 56. Bb6 {[%emt 0:00:48]} f4 {[%emt 0:00:41]} 57. Bd4 {[%emt 0:00:30]} Kb4 {[%emt 0:00:35]} 58. Bc3+ {[%emt 0:00:28]} Kc4 {[%emt 0:00:15]} 59. Be5 {[%emt 0:00:21]} f3 {[%emt 0:00:05]} 60. Ke3 {[%emt 0:00:25]} Kb4 {[%emt 0:00:22]} 61. Kd4 {[%emt 0:01:19]} Kb3 {[%emt 0:07:36]} 0-1

[Event "Swiss Championship 2024"]
[Site "Flims"]
[Date "2024.07.13"]
[Round "1.5"]
[White "Georgiadis, Ioannis"]
[Black "Klauser, Markus"]
[Result "1/2-1/2"]
[ECO "A29"]
[WhiteElo "2483"]
[BlackElo "2358"]
[Annotator "ChessBase"]
[PlyCount "164"]
[EventDate "2024.07.10"]
[EventType "tourn"]
[EventCountry "SUI"]
[SourceTitle "playchess.com"]
[Source "ChessBase"]
[SourceQuality "1"]
[TimeControl "40/5400+30:1800+30"]

1. c4 {[%emt 0:00:06]} e5 {[%emt 0:00:15]} 2. Nc3 {[%emt 0:00:04]} Nf6 {[%emt 0:00:06]} 3. Nf3 {[%emt 0:00:19]} Nc6 {[%emt 0:00:07]} 4. g3 {[%emt 0:00:43]} Nd4 {[%emt 0:05:35]} 5. Bg2 {[%emt 0:00:42]} Nxf3+ {[%emt 0:00:41]} 6. Bxf3 {[%emt 0:00:08]} Bb4 {[%emt 0:04:41]} 7. Qb3 {[%emt 0:02:58]} a5 {[%emt 0:03:10]} 8. O-O {[%emt 0:03:04]} O-O {[%emt 0:00:19]} 9. d3 {[%emt 0:02:18]} h6 {[%emt 0:02:45]} 10. Na4 {[%emt 0:01:57]} Be7 {[%emt 0:20:14]} 11. d4 {[%emt 0:20:29]} e4 {[%emt 0:07:06]} 12. Bg2 {[%emt 0:00:04]} Re8 {[%emt 0:00:15]} 13. Nc3 {[%emt 0:07:48]} Bb4 {[%emt 0:00:46]} 14. Bf4 {[%emt 0:03:53]} Bxc3 {[%emt 0:02:15]} 15. Qxc3 {[%emt 0:14:22]} d5 {[%emt 0:03:39]} 16. c5 {[%emt 0:01:56]} c6 {[%emt 0:02:10]} 17. h3 {[%emt 0:01:00]} Bf5 {[%emt 0:03:33]} 18. g4 {[%emt 0:03:34]} Bh7 {[%emt 0:01:32]} 19. a4 {[%emt 0:00:36]} Nd7 {[%emt 0:00:47]} 20. Qg3 {[%emt 0:01:55]} Nf8 {[%emt 0:00:46]} 21. Bc7 {[%emt 0:02:37]} Qd7 {[%emt 0:01:25]} 22. Rfd1 {[%emt 0:02:42]} Re6 {[%emt 0:02:42]} 23. Bb6 {[%emt 0:01:52]} f5 {[%emt 0:05:23]} 24. Qc7 {[%emt 0:10:48]} Qe8 {[%emt 0:03:12]} 25. Ra3 {[%emt 0:02:46]} Re7 {[%emt 0:02:18]} 26. Qg3 {[%emt 0:02:42]} Ne6 {[%emt 0:03:33]} 27. gxf5 {[%emt 0:00:25]} Bxf5 {[%emt 0:00:37]} 28. Qd6 {[%emt 0:01:42]} Rf7 {[%emt 0:01:38]} 29. Rg3 {[%emt 0:01:24]} Rf6 {[%emt 0:00:41]} 30. Qe5 {[%emt 0:00:25]} Qf7 {[%emt 0:01:08]} 31. Kh2 {[%emt 0:06:20]} Re8 {[%emt 0:01:05]} 32. Rg1 {[%emt 0:00:04]} Bh7 {[%emt 0:07:45]} 33. Bxa5 {[%emt 0:04:00]} Nf4 {[%emt 0:04:48]} 34. Qc7 {[%emt 0:00:10]} Qxc7 {[%emt 0:00:41]} 35. Bxc7 {[%emt 0:00:01]} Nxe2 {[%emt 0:00:57]} 36. Be5 {[%emt 0:00:36]} Rf7 {[%emt 0:03:15]} 37. Re3 {[%emt 0:01:32]} Nxg1 {[%emt 0:00:49]} 38. Kxg1 {[%emt 0:00:01]} Bf5 {[%emt 0:01:51]} 39. Rb3 {[%emt 0:01:04]} g5 {[%emt 0:01:30]} 40. Bf1 {[%emt 0:00:19]} Bc8 {[%emt 0:01:03]} 41. Be2 {[%emt 0:02:20]} Ref8 {[%emt 0:12:01]} 42. Bd6 {[%emt 0:11:19]} Rxf2 {[%emt 0:02:36]} 43. Bxf8 {[%emt 0:00:08]} Rxe2 {[%emt 0:01:01]} 44. Bxh6 {[%emt 0:00:28]} Rd2 {[%emt 0:03:33]} 45. Bxg5 {[%emt 0:02:14]} Rxd4 {[%emt 0:00:25]} 46. a5 {[%emt 0:02:23]} Ra4 {[%emt 0:01:12]} 47. a6 {[%emt 0:00:27]} Rxa6 {[%emt 0:00:48]} 48. Ra3 {[%emt 0:00:05]} Rxa3 {[%emt 0:01:08]} 49. bxa3 {[%emt 0:00:05]} Kf7 {[%emt 0:02:00]} 50. Be3 {[%emt 0:03:47]} Bxh3 {[%emt 0:04:07]} 51. Kf2 {[%emt 0:00:30]} Bc8 {[%emt 0:00:31]} 52. Bd4 {[%emt 0:05:25]} Ke6 {[%emt 0:00:18]} 53. Ke3 {[%emt 0:00:22]} b6 {[%emt 0:00:25]} 54. Kd2 {[%emt 0:03:46]} bxc5 {[%emt 0:00:16]} 55. Bxc5 {[%emt 0:00:03]} Ke5 {[%emt 0:00:13]} 56. Kc3 {[%emt 0:00:37]} Ba6 {[%emt 0:00:30]} 57. Ba7 {[%emt 0:00:23]} Kf4 {[%emt 0:00:51]} 58. Kd2 {[%emt 0:00:07]} e3+ {[%emt 0:01:31]} 59. Bxe3+ {[%emt 0:00:05]} Ke4 {[%emt 0:00:06]} 60. Bc5 {[%emt 0:05:31]} d4 {[%emt 0:00:06]} 61. a4 {[%emt 0:00:50]} Kd5 {[%emt 0:00:08]} 62. Ba3 {[%emt 0:00:03]} c5 {[%emt 0:00:12]} 63. Kc2 {[%emt 0:00:21]} c4 {[%emt 0:01:51]} 64. Bb2 {[%emt 0:00:50]} Bc8 {[%emt 0:00:52]} 65. Kd2 {[%emt 0:00:22]} Ke4 {[%emt 0:02:23]} 66. Ba1 {[%emt 0:00:04]} Bd7 {[%emt 0:00:26]} 67. a5 {[%emt 0:00:20]} Kd5 {[%emt 0:00:32]} 68. Bb2 {[%emt 0:00:07]} Bc8 {[%emt 0:00:37]} 69. Ba1 {[%emt 0:00:07]} Kc5 {[%emt 0:00:10]} 70. Bb2 {[%emt 0:00:05]} Ba6 {[%emt 0:00:27]} 71. Ba3+ {[%emt 0:00:30]} Kb5 {[%emt 0:00:51]} 72. Bb2 {[%emt 0:00:05]} Kc5 {[%emt 0:00:46]} 73. Ba3+ {[%emt 0:00:06]} Kc6 {[%emt 0:00:17]} 74. Bb2 {[%emt 0:00:02]} Kd5 {[%emt 0:00:06]} 75. Ba1 {[%emt 0:00:06]} Bb5 {[%emt 0:00:25]} 76. Bb2 {[%emt 0:00:04]} Ke4 {[%emt 0:00:34]} 77. Ba1 {[%emt 0:00:06]} Ke5 {[%emt 0:00:37]} 78. Bb2 {[%emt 0:00:04]} Kd5 {[%emt 0:00:12]} 79. Ba1 {[%emt 0:00:03]} Kc5 {[%emt 0:00:13]} 80. Bb2 {[%emt 0:00:03]} Ba6 {[%emt 0:00:12]} 81. Ba3+ {[%emt 0:00:11]} Kb5 {[%emt 0:00:18]} 82. Bb2 {[%emt 0:00:06]} Kc5 {[%emt 0:00:17]} 1/2-1/2

[Event "Swiss Championship 2024"]
[Site "Flims"]
[Date "2024.07.14"]
[Round "2.1"]
[White "Bogner, Sebastian"]
[Black "Klauser, Markus"]
[Result "1-0"]
[ECO "E16"]
[WhiteElo "2547"]
[BlackElo "2358"]
[Annotator "TA"]
[PlyCount "67"]
[EventDate "2024.07.10"]
[EventType "tourn"]
[EventCountry "SUI"]
[SourceTitle "playchess.com"]
[Source "ChessBase"]
[SourceQuality "1"]
[TimeControl "40/5400+30:1800+30"]

{[%evp 14,67,35,26,43,54,67,61,73,69,75,72,71,69,66,66,70,52,74,75,78,80,77,76,130,102,115,120,174,190,171,159,161,143,136,136,144,139,143,138,245,240,227,218,287,292,497,283,348,337,331,343,458,440,438,440]} 1. d4 {[%emt 0:00:09]} Nf6 {[%emt 0:00:13]} 2. c4 {[%emt 0:00:03]} e6 {[%emt 0:00:09]} 3. Nf3 {[%emt 0:00:07]} Bb4+ {[%emt 0:00:11]} 4. Bd2 {[%emt 0:00:16]} a5 {[%emt 0:00:12]} 5. g3 {[%emt 0:00:35]} b6 {[%emt 0:00:12]} 6. Bg2 {[%emt 0:00:05]} Bb7 {[%emt 0:00:07]} 7. O-O {[%emt 0:00:18]} Bxd2 {[%emt 0:01:07]} 8. Qxd2 {[%emt 0:00:08]} d6 {[%emt 0:00:35]} 9. Qf4 {[%emt 0:01:13]} Nbd7 {[%emt 0:01:30]} 10. Nc3 {[%emt 0:03:54]} Qe7 {[%emt 0:06:49] White is slightly better.} 11. e4 {[%emt 0:00:16]} e5 {[%emt 0:00:59]} 12. Qe3 {[%emt 0:00:06]} O-O {[%emt 0:04:05]} 13. Rfe1 {[%emt 0:17:24]} Rfe8 {[%emt 0:07:16]} 14. Rad1 {[%emt 0:02:30]} a4 {[%emt 0:08:58]} 15. h3 {[%emt 0:04:06]} g6 {[%emt 0:02:31]} 16. Qc1 {[%emt 0:07:56] Black is now going downhill.} Qf8 {[%emt 0:04:19]} 17. Qc2 {[%emt 0:06:58]} Ra5 {[%emt 0:13:41]} 18. Re3 {[%emt 0:02:04]} exd4 {[%emt 0:03:51]} (18... Rea8 $142) 19. Nxd4 $16 {[%emt 0:01:04][%cal Od4b5]} Nc5 {[%emt 0:01:44]} 20. Nd5 {[%emt 0:06:38]} Bxd5 {[%emt 0:00:49]} (20... Nxd5 $16 {was worth a try.} 21. cxd5 Rea8) 21. cxd5 $18 {[%emt 0:00:19]} h5 {[%emt 0:04:19]} 22. Nc6 {[%emt 0:08:28]} Raa8 {[%emt 0:00:49]} 23. f4 {[%emt 0:07:56]} Qh6 {[%emt 0:00:50] [#]} 24. h4 $1 {[%emt 0:08:33] White is more active.} Ng4 {[%emt 0:01:16]} 25. Re2 $36 {[%emt 0:00:01][%mdl 2048] Keeping Black busy.} Qg7 {[%emt 0:01:05][%cal Of7f5]} 26. Rde1 {[%emt 0:01:18]} a3 {[%emt 0:05:00]} (26... Kh7 $16 {is a better defense.} 27. e5 dxe5) 27. b4 {[%emt 0:01:32]} Nd7 {[%emt 0:02:11]} 28. Qc4 {[%emt 0:01:30]} Rac8 {[%emt 0:03:53]} 29. Bf3 {[%emt 0:00:40]} Qf6 $2 {[%emt 0:03:33] [#]} (29... f6 30. Qc3 Qf7 31. Qxa3 Qg7) 30. Kg2 {[%emt 0:05:01]} (30. Bxg4 $142 b5 31. e5 (31. Qxb5 hxg4 32. e5 Qh8 $18)) 30... Kh7 {[%emt 0:02:01]} 31. Bxg4 {[%emt 0:03:09]} hxg4 {[%emt 0:00:04]} 32. Na7 {[%emt 0:01:07]} Ra8 {[%emt 0:03:07]} 33. Qxc7 {[%emt 0:02:26]} Qd8 {[%emt 0:03:39]} 34. Nb5 {[%emt 0:01:02] Weighted Error Value: White=0.14 (very precise) /Black=0.36.  Mistake:       	White=1     	Black=4      Inaccurate:     	---       	Black=2      OK:         	White=16    	Black=11     Best:        	White=1     	---} ({Weaker is} 34. Qxd6 Rxa7 35. e5 Qc7 36. Qxc7 Rxc7 $17) 1-0